fUSD/lending_fUSD_20240729
["ID","MTS","AMOUNT","RATE_DAILY","PERIOD"]
[333608924,1722277845308,-420.16,0.00010998,2]
[333608926,1722277845318,-172.45,0.00010998,2]
[333608928,1722277845328,-2311.59,0.00010998,2]
[333608930,1722277845337,-2311.59,0.00010998,2]
[333608932,1722277845347,-2311.59,0.00010998,2]
[333608935,1722277845356,-2311.59,0.00010998,2]
[333608937,1722277845366,-2311.59,0.00010998,2]
[333608940,1722277845376,-2311.59,0.00010998,2]
[333608942,1722277845386,-2311.59,0.00010998,2]
[333608944,1722277845395,-2311.59,0.00010998,2]
[333608946,1722277845405,-500.0,0.00010998,2]
[333608948,1722277845415,-2311.59,0.00010998,2]
[333608950,1722277845424,-2311.59,0.00010998,2]
[333608952,1722277845434,-2311.59,0.00010998,2]
[333608954,1722277845443,-500.0,0.00010998,2]
[333608956,1722277845453,-2193.00937191,0.00010998,2]
[333608960,1722277845482,-500.0,0.00010994,2]
[333608962,1722277845493,-118.58062809,0.00010998,2]
[333608964,1722277845502,-1112.51324939,0.00010998,2]
[333608966,1722277845514,-697.22222227,0.00010998,2]
[333608968,1722277845526,-501.85452834,0.00010998,2]
[333608970,1722277845535,-2311.59,0.00010998,2]
[333608973,1722277845544,-839.76534532,0.00010998,2]
[333608976,1722277845556,-1471.82465468,0.00010998,2]
[333608979,1722277845565,-2311.59,0.00010998,2]
[333608984,1722277845575,-2311.59,0.00010998,2]
[333608988,1722277845585,-2311.59,0.00010998,2]
[333608990,1722277845594,-2311.59,0.00010998,2]
[333608992,1722277845604,-2311.59,0.00010998,2]
[333608994,1722277845613,-2311.80033756,0.00010998,2]
[333608996,1722277845623,-500.0,0.00010998,2]
[333608997,1722277845633,-500.0,0.00010998,2]
[333608998,1722277845643,-500.0,0.00010998,2]
[333608999,1722277845653,-500.0,0.00010998,2]
[333609000,1722277845662,-419.03622971,0.00010998,2]
[333609001,1722277845674,-500.0,0.00010998,2]
[333609002,1722277845683,-254.5,0.00010998,2]
[333609003,1722277845694,-169.38,0.00010998,2]
[333609004,1722277845703,-500.0,0.00010998,2]
[333609005,1722277845715,-318.81,0.00010998,2]
[333609006,1722277845724,-192.31,0.00010998,2]
[333609007,1722277845734,-500.0,0.00010998,2]
[333609008,1722277845745,-500.0,0.00010998,2]
[333609009,1722277845754,-500.0,0.00010998,2]
[333609010,1722277845765,-500.0,0.00010998,2]
[333609011,1722277845774,-500.0,0.00010998,2]
[333609012,1722277845783,-491.1013202,0.00010998,2]
[333609013,1722277845793,-500.0,0.00010998,2]
[333609014,1722277845802,-500.0,0.00010998,2]
[333609015,1722277845811,-500.0,0.00010998,2]
[333609016,1722277845821,-500.0,0.00010998,2]
[333609017,1722277845831,-500.0,0.00010998,2]
[333609018,1722277845841,-500.0,0.00010998,2]
[333609019,1722277845851,-400.59,0.00010998,2]
[333609020,1722277845860,-500.0,0.00010998,2]
[333609021,1722277845870,-395.55177618,0.00010998,2]
[333609022,1722277845882,-104.44822382,0.00010998,2]
[333609023,1722277845892,-500.0,0.00010998,2]
[333609024,1722277845901,-500.0,0.00010998,2]
[333609025,1722277845911,-500.0,0.00010998,2]
[333609026,1722277845922,-500.0,0.00010998,2]
[333609027,1722277845931,-88.04690708,0.00010998,2]
[333609028,1722277846105,-500.0,0.00010958,2]
[333609029,1722277846115,-500.0,0.00010991,2]
[333609030,1722277846125,-396.69046004,0.00010997,2]
[333609031,1722277846136,-103.30953996,0.00010997,2]
[333609032,1722277846146,-500.0,0.00010997,2]
[333609033,1722277846155,-40.79687413,0.00010998,2]
[333609039,1722277846379,-371.15621879,0.00010998,2]
[333609040,1722277846389,-500.0,0.00010998,2]
[333609041,1722277846397,-500.0,0.00010998,2]
[333609042,1722277846407,-317.35314429,0.00010998,2]
[333609045,1722277846418,-182.64685571,0.00010998,2]
[333609047,1722277846428,-500.0,0.00010998,2]
[333609048,1722277846436,-200.76278667,0.00010998,2]
[333609051,1722277846448,-299.23721333,0.00010998,2]
[333609053,1722277846457,-500.0,0.00010998,2]
[333609055,1722277846473,-500.0,0.00010998,2]
[333609056,1722277846482,-215.82,0.00010998,2]
[333609058,1722277846491,-395.38,0.00010998,2]
[333609060,1722277846501,-500.0,0.00010998,2]
[333609062,1722277846510,-500.0,0.00010998,2]
[333609064,1722277846520,-500.0,0.00010998,2]
[333609066,1722277846529,-500.0,0.00010998,2]
[333609068,1722277846539,-500.0,0.00010998,2]
[333609070,1722277846547,-486.2,0.00010998,2]
[333609072,1722277846557,-500.0,0.00010998,2]
[333609074,1722277846567,-329.42,0.00010998,2]
[333609076,1722277846576,-469.75,0.00010998,2]
[333609078,1722277846585,-504.28,0.00010998,2]
[333609080,1722277846594,-326.85,0.00010998,2]
[333609082,1722277846603,-505.46,0.00010998,2]
[333609084,1722277846612,-500.0,0.00010998,2]
[333609086,1722277846621,-500.0,0.00010998,2]
[333609088,1722277846630,-500.0,0.00010998,2]
[333609091,1722277846639,-316.98,0.00010998,2]
[333609093,1722277846648,-500.0,0.00010998,2]
[333609095,1722277846662,-457.81,0.00010998,2]
[333609097,1722277846671,-500.0,0.00010998,2]
[333609099,1722277846681,-578.32,0.00010998,2]
[333609101,1722277846690,-500.0,0.00010998,2]
[333609103,1722277846701,-500.0,0.00010998,2]
[333609104,1722277846715,-500.0,0.00010998,2]
[333609106,1722277846724,-500.0,0.00010998,2]
[333609107,1722277846734,-500.0,0.00010998,2]
[333609108,1722277846743,-500.0,0.00010998,2]
[333609109,1722277846753,-500.0,0.00010998,2]
[333609110,1722277846762,-500.0,0.00010998,2]
[333609111,1722277846771,-500.0,0.00010998,2]
[333609112,1722277846780,-500.0,0.00010998,2]
[333609113,1722277846789,-500.0,0.00010998,2]
[333609114,1722277846798,-500.0,0.00010998,2]
[333609115,1722277846808,-240.5,0.00010998,2]
[333609116,1722277846818,-500.0,0.00010998,2]
[333609117,1722277846827,-500.0,0.00010998,2]
[333609118,1722277846836,-502.72,0.00010998,2]
[333609119,1722277846845,-500.0,0.00010998,2]
[333609120,1722277846854,-181.98,0.00010998,2]
[333609121,1722277846864,-500.0,0.00010998,2]
[333609122,1722277846873,-500.0,0.00010998,2]
[333609123,1722277846882,-500.0,0.00010998,2]
[333609124,1722277846893,-500.0,0.00010998,2]
[333609125,1722277846902,-500.0,0.00010998,2]
[333609126,1722277846911,-500.0,0.00010998,2]
[333609127,1722277846921,-500.0,0.00010998,2]
[333609128,1722277846930,-500.0,0.00010998,2]
[333609129,1722277846940,-500.0,0.00010998,2]
[333609130,1722277846950,-500.0,0.00010998,2]
[333609131,1722277846963,-500.0,0.00010998,2]
[333609132,1722277846972,-500.0,0.00010998,2]
[333609133,1722277846982,-500.0,0.00010998,2]
[333609134,1722277846991,-500.0,0.00010998,2]
[333609135,1722277847001,-500.0,0.00010998,2]
[333609136,1722277847010,-500.0,0.00010998,2]
[333609137,1722277847019,-500.0,0.00010998,2]
[333609138,1722277847028,-500.0,0.00010998,2]
[333609139,1722277847037,-580.7,0.00010998,2]
[333609140,1722277847046,-500.0,0.00010998,2]
[333609141,1722277847055,-500.0,0.00010998,2]
[333609142,1722277847065,-500.0,0.00010998,2]
[333609143,1722277847075,-500.0,0.00010998,2]
[333609144,1722277847084,-500.0,0.00010998,2]
[333609145,1722277847093,-500.0,0.00010998,2]
[333609146,1722277847102,-500.0,0.00010998,2]
[333609147,1722277847112,-500.0,0.00010998,2]
[333609148,1722277847122,-500.0,0.00010998,2]
[333609149,1722277847131,-500.0,0.00010998,2]
[333609150,1722277847143,-500.0,0.00010998,2]
[333609151,1722277847152,-500.0,0.00010998,2]
[333609152,1722277847161,-500.0,0.00010998,2]
[333609153,1722277847171,-500.0,0.00010998,2]
[333609154,1722277847180,-502.68831434,0.00010998,2]
[333609155,1722277847189,-500.0,0.00010998,2]
[333609156,1722277847199,-568.01,0.00010998,2]
[333609157,1722277847210,-568.01,0.00010998,2]
[333609158,1722277847220,-500.0,0.00010998,2]
[333609159,1722277847229,-568.01,0.00010998,2]
[333609160,1722277847239,-342.01,0.00010998,2]
[333609161,1722277847248,-568.01,0.00010998,2]
[333609162,1722277847257,-568.01,0.00010998,2]
[333609163,1722277847266,-568.01,0.00010998,2]
[333609164,1722277847275,-568.01,0.00010998,2]
[333609165,1722277847284,-568.01,0.00010998,2]
[333609166,1722277847293,-568.01,0.00010998,2]
[333609167,1722277847303,-568.01,0.00010998,2]
[333609168,1722277847312,-568.01,0.00010998,2]
[333609169,1722277847322,-568.01,0.00010998,2]
[333609170,1722277847331,-500.0,0.00010998,2]
[333609171,1722277847340,-568.01,0.00010998,2]
[333609172,1722277847350,-568.01,0.00010998,2]
[333609173,1722277847359,-568.01,0.00010998,2]
[333609174,1722277847368,-568.01,0.00010998,2]
[333609175,1722277847377,-568.01,0.00010998,2]
[333609176,1722277847386,-500.0,0.00010998,2]
[333609177,1722277847396,-568.01,0.00010998,2]
[333609178,1722277847405,-500.0,0.00010998,2]
[333609179,1722277847414,-568.01,0.00010998,2]
[333609180,1722277847423,-500.0,0.00010998,2]
[333609181,1722277847432,-568.01,0.00010998,2]
[333609182,1722277847442,-500.0,0.00010998,2]
[333609183,1722277847450,-568.01,0.00010998,2]
[333609184,1722277847462,-568.15,0.00010998,2]
[333609185,1722277847471,-500.0,0.00010998,2]
[333609186,1722277847480,-531.86,0.00010998,2]
[333609187,1722277847489,-500.0,0.00010998,2]
[333609188,1722277847498,-500.0,0.00010998,2]
[333609189,1722277847508,-172.42582263,0.00010998,2]
[333609190,1722277847517,-500.0,0.00010998,2]
[333609191,1722277847526,-500.0,0.00010998,2]
[333609192,1722277847535,-550.0,0.00010998,2]
[333609193,1722277847544,-150.0,0.00010998,2]
[333609194,1722277847553,-1370.0,0.00010998,2]
[333609195,1722277847562,-908.904,0.00010998,2]
[333609196,1722277847571,-5124.0,0.00010998,2]
[333609197,1722277847580,-1798.452,0.00010998,2]
[333609198,1722277847589,-1202.0,0.00010998,2]
[333609199,1722277847598,-1660.0,0.00010998,2]
[333609200,1722277847607,-644.0,0.00010999,2]
[333609201,1722277847617,-30662.85755468,0.00010999,2]
[333609202,1722277847749,-197865.12055631,0.00010999,2]
[333609203,1722277847761,-1225.9364753,0.00010999,2]
[333609204,1722277847772,-1548.34307602,0.00010999,2]
[333609205,1722277847784,-509.73860691,0.00010999,2]
[333609206,1722277847796,-649.02,0.00010999,2]
[333609207,1722277847833,-500.0,0.00010998,2]
[333609208,1722277847842,-3880.48860994,0.00010999,2]
[333609209,1722277847853,-2430.53542353,0.00010999,2]
[333609210,1722277847864,-463131.71609677,0.00010999,2]
[333609211,1722277847876,-3291.39065368,0.00010999,2]
[333609212,1722277847887,-891.51412651,0.00010999,2]
[333609213,1722277847898,-4263.44190686,0.00010999,2]
[333609214,1722277847920,-392.85540526,0.00010998,2]
[333609215,1722277847931,-107.14459474,0.00010998,2]
[333609216,1722277847941,-1193.43303013,0.00010999,2]
[333609217,1722277848059,-163.03,0.00010998,2]
[333609218,1722277848069,-124.40389041,0.00010999,2]
[333609219,1722277848081,-1968.40098272,0.00010999,2]
[333609220,1722277848092,-2425.04959483,0.00010999,2]
[333609221,1722277848104,-4356.57428398,0.00010999,2]
[333609222,1722277848115,-37277.37337114,0.00010999,2]
[333609223,1722277848126,-6642.40000016,0.00010999,2]
[333609224,1722277848138,-4758.83315236,0.00010999,2]
[333609225,1722277848149,-57132.84063056,0.00010999,2]
[333609226,1722277848311,-1041.17810398,0.0001078,2]
[333609227,1722277848323,-539.64431596,0.0001078,2]
[333609228,1722277848334,-3451.92738006,0.0001078,2]
[333609229,1722277848344,-6337.84772322,0.00010999,2]
[333609230,1722277848356,-3458.41330043,0.00010999,2]
[333609231,1722277848367,-634367.43049958,0.00010999,2]
[333609232,1722277848391,-12331.1541488,0.00010999,2]
[333609233,1722277848403,-281.00881241,0.00010999,2]
[333609234,1722277848415,-2836.5862804,0.00010999,2]
[333609235,1722277848426,-1732.1556518,0.00010999,2]
[333609236,1722277848441,-1299.91711755,0.00010999,2]
[333609237,1722277848452,-612.67,0.00010999,2]
[333609238,1722277848466,-2990.50036596,0.00010999,2]
[333609239,1722277848479,-361.0873548,0.00010999,2]
[333609244,1722277997111,500.0,0.00025613,120]
[333609245,1722278000214,196.700411,0.00025408,120]
[333609246,1722278314166,1607.691116,8e-07,2]
[333609249,1722278438012,1222.30541732,8e-07,2]
[333609250,1722278438098,155.0,8e-07,2]
[333609251,1722278441678,870.63292453,8e-07,2]
[333609253,1722278641162,236.39065367,5e-05,2]
[333609254,1722278678978,236.39065367,5e-05,2]
[333609255,1722278682541,287.84913,5e-05,2]
[333609256,1722278706106,150.0,5e-05,2]
[333609257,1722278706127,141.30856985,5e-05,2]
[333609258,1722278708573,8.69143015,5e-05,2]
[333609259,1722278708594,146.30856985,5e-05,2]
[333609260,1722278724978,150.0,5e-05,2]
[333609261,1722278725003,20221.42884303,5e-05,2]
[333609262,1722278749225,150.0,6.061e-05,2]
[333609263,1722278749247,141.00943387,6.061e-05,2]
[333609274,1722278750890,8.99056613,6.061e-05,2]
[333609275,1722278750911,150.0,6.061e-05,2]
[333609276,1722278750931,111.0501645,6.061e-05,2]
[333609277,1722278751971,201.3262772,6.061e-05,2]
[333609278,1722278751993,35.06437647,6.061e-05,2]
[333609279,1722278753118,155.049329,6.061e-05,2]
[333609280,1722278753462,9262.00526818,5e-05,2]
[333609284,1722278769017,150.0,5e-05,2]
[333609286,1722278769040,5.0,5e-05,2]
[333609599,1722278776901,9781.28851325,6.061e-05,2]
[333609751,1722278783484,150.0,5e-05,2]
[333609752,1722278783505,188.9498355,5e-05,2]
[333609753,1722278783527,1031.0531439,5e-05,2]
[333609754,1722278792494,150.0,5e-05,2]
[333609755,1722278792516,150.0,5e-05,2]
[333609756,1722278792538,150.0,5e-05,2]
[333609757,1722278792560,235424.48406609,5e-05,2]
[333609759,1722278798853,150.0,6.061e-05,2]
[333609760,1722278798873,150.0,6.061e-05,2]
[333609761,1722278798894,150.0,6.061e-05,2]
[333609762,1722278798914,150.0,6.061e-05,2]
[333609763,1722278798934,150.0,6.061e-05,2]
[333609764,1722278798955,8512.00526818,6.061e-05,2]
[333609765,1722278801386,305.40117997,5e-05,2]
[333609766,1722278814692,300.0,6.061e-05,2]
[333609767,1722278819047,188.68526406,6.061e-05,2]
[333609768,1722278819075,1057.40828512,6.061e-05,2]
[333609769,1722278830412,797.63484705,6.061e-05,2]
[333609770,1722278830443,141871.05564557,6.061e-05,2]
[333609771,1722278839896,188.68526406,6.061e-05,2]
[333609772,1722278919861,150.0,6.061e-05,2]
[333609773,1722278919884,8808.60992695,6.061e-05,2]
[333609782,1722279031788,-170.13,7.585e-05,2]
[333609783,1722279031799,-163.9,8.219e-05,2]
[333609784,1722279031808,-105.47433744,8.219e-05,2]
[333609785,1722279031819,-313.57105066,8.219e-05,2]
[333609786,1722279031831,-167.3146119,8.219e-05,2]
[333609787,1722279031841,-708.71,9.398e-05,2]
[333609788,1722279031850,-300.0,9.398e-05,2]
[333609789,1722279031859,-1852.42,9.399e-05,2]
[333609790,1722279031868,-150.0,9.452e-05,2]
[333609791,1722279031878,-200.0,9.466e-05,2]
[333609792,1722279031887,-444.57,9.468e-05,2]
[333609793,1722279031896,-21352.4,9.474e-05,2]
[333609794,1722279031906,-250.0,9.474e-05,2]
[333609795,1722279031915,-908.33,9.476e-05,2]
[333609796,1722279031924,-944.17,9.476e-05,2]
[333609797,1722279031934,-20633.79,9.485e-05,2]
[333609798,1722279031943,-208.76,9.494e-05,2]
[333609799,1722279031953,-3896.69,9.511e-05,2]
[333609800,1722279031962,-345.71,9.549e-05,2]
[333609801,1722279031972,-1000.0,9.604e-05,2]
[333609802,1722279031981,-168.62,9.642e-05,2]
[333609803,1722279031991,-13900.3516046,9.66e-05,2]
[333609804,1722279032000,-150.0,9.669e-05,2]
[333609805,1722279032011,-1135.73,9.67e-05,2]
[333609806,1722279032020,-563.52,9.67e-05,2]
[333609807,1722279032030,-2174.44,9.67e-05,2]
[333609808,1722279032040,-499.99,9.67e-05,2]
[333609809,1722279032054,-150.0,9.888e-05,2]
[333609810,1722279032063,-1250.0,0.0001,2]
[333609811,1722279032072,-156.71,0.00010136,2]
[333609812,1722279032082,-156.71,0.00010139,2]
[333609813,1722279032093,-156.71,0.00010142,2]
[333609814,1722279032102,-156.71,0.00010145,2]
[333609815,1722279032112,-156.71,0.00010148,2]
[333609816,1722279032125,-156.71,0.00010151,2]
[333609818,1722279032134,-156.71,0.00010154,2]
[333609820,1722279032144,-156.71,0.00010157,2]
[333609821,1722279032153,-156.71,0.0001016,2]
[333609823,1722279032163,-156.71,0.00010163,2]
[333609825,1722279032172,-156.71,0.00010166,2]
[333609827,1722279032182,-156.71,0.00010169,2]
[333609829,1722279032191,-156.71,0.00010172,2]
[333609831,1722279032200,-156.71,0.00010175,2]
[333609832,1722279032210,-156.71,0.00010178,2]
[333609833,1722279032219,-156.71,0.00010181,2]
[333609834,1722279032228,-156.71,0.00010184,2]
[333609835,1722279032238,-156.71,0.00010187,2]
[333609836,1722279032247,-420.0,0.00010338,2]
[333609837,1722279032257,-150.0,0.00010378,2]
[333609838,1722279032266,-150.0,0.00010378,2]
[333609839,1722279032276,-586.36,0.00010445,2]
[333609840,1722279032285,-259.26709898,0.00010448,2]
[333609841,1722279032295,-469.812476,0.00010492,2]
[333609842,1722279032304,-1994.979677,0.00010492,2]
[333609843,1722279032314,-204.979457,0.00010492,2]
[333609844,1722279032323,-271.676339,0.00010492,2]
[333609845,1722279032333,-804.40618269,0.00010492,2]
[333609846,1722279032345,-986.84708931,0.00010492,2]
[333609847,1722279032355,-12407.0,0.00010566,2]
[333609848,1722279032364,-150.0,0.00010578,2]
[333609849,1722279032373,-469.812476,0.00010623,2]
[333609850,1722279032382,-1994.979677,0.00010623,2]
[333609851,1722279032392,-1791.253272,0.00010623,2]
[333609852,1722279032401,-255.0,0.00010635,2]
[333609853,1722279032410,-469.812476,0.00010754,2]
[333609854,1722279032420,-1994.979677,0.00010754,2]
[333609855,1722279032429,-1791.253272,0.00010754,2]
[333609856,1722279032439,-500.0,0.0001078,2]
[333609857,1722279032448,-6854.8153,0.00010799,2]
[333609858,1722279032458,-1000.0,0.00010805,2]
[333609859,1722279032467,-469.812476,0.00010885,2]
[333609860,1722279032476,-1994.979677,0.00010885,2]
[333609861,1722279032485,-1791.253272,0.00010885,2]
[333609862,1722279032495,-9826.77819104,0.0001089,2]
[333609863,1722279032504,-736.1004,0.00010892,2]
[333609864,1722279032515,-1671.83220681,0.00010898,2]
[333609865,1722279032531,-5086.74388045,0.00010898,2]
[333609866,1722279032540,-7500.0,0.00010899,2]
[333609867,1722279032550,-190.07546064,0.00010899,2]
[333609868,1722279032559,-179.61977285,0.00010899,2]
[333609869,1722279032568,-2185.06563869,0.00010899,2]
[333609870,1722279032577,-2185.06563865,0.00010899,2]
[333609871,1722279032587,-2185.06563865,0.00010899,2]
[333609872,1722279032596,-2185.06563865,0.00010899,2]
[333609873,1722279032605,-2185.06563865,0.00010899,2]
[333609874,1722279032614,-2185.06563865,0.00010899,2]
[333609875,1722279032814,-2185.06563865,0.00010899,2]
[333609876,1722279032824,-2185.06563865,0.00010899,2]
[333609877,1722279032834,-329.60084461,0.00010899,2]
[333609878,1722279032843,-198.96306483,0.00010899,2]
[333609879,1722279032852,-176.96034438,0.00010899,2]
[333609880,1722279032862,-2185.06563865,0.00010899,2]
[333609881,1722279032871,-179.61977284,0.000109,2]
[333609882,1722279032880,-2185.06563865,0.000109,2]
[333609883,1722279032889,-341.55,0.00010904,3]
[333609884,1722279032898,-500.0,0.00010911,2]
[333609885,1722279032907,-500.0,0.00010958,2]
[333609886,1722279032917,-500.0,0.00010958,2]
[333609887,1722279032926,-500.0,0.00010958,2]
[333609888,1722279032935,-200.0,0.00010959,2]
[333609889,1722279032944,-250.0,0.00010959,2]
[333609890,1722279032954,-150.0,0.00010959,2]
[333609891,1722279032963,-153.74,0.00010989,2]
[333609892,1722279032972,-153.74,0.00010989,2]
[333609893,1722279032981,-153.74,0.00010989,2]
[333609894,1722279032991,-153.74,0.00010989,2]
[333609895,1722279033001,-153.74,0.00010989,2]
[333609896,1722279033012,-153.74,0.00010989,2]
[333609897,1722279033025,-153.74,0.0001099,2]
[333609898,1722279033035,-153.74,0.0001099,2]
[333609899,1722279033046,-153.74,0.0001099,2]
[333609900,1722279033056,-153.74,0.0001099,2]
[333609901,1722279033066,-153.74,0.0001099,2]
[333609902,1722279033076,-153.74,0.0001099,2]
[333609903,1722279033086,-153.74,0.0001099,2]
[333609904,1722279033096,-153.74,0.0001099,2]
[333609905,1722279033105,-153.74,0.0001099,2]
[333609906,1722279033115,-153.74,0.0001099,2]
[333609907,1722279033128,-153.74,0.0001099,2]
[333609908,1722279033138,-153.74,0.0001099,2]
[333609909,1722279033148,-477.01094481,0.00010991,2]
[333609910,1722279033157,-500.0,0.00010991,2]
[333609911,1722279033167,-500.0,0.00010991,2]
[333609912,1722279033177,-319.3874068,0.00010992,2]
[333609913,1722279033186,-4284.2818148,0.00010992,2]
[333609914,1722279033196,-2596.4235359,0.00010992,2]
[333609915,1722279033208,-1692.33923625,0.00010992,2]
[333609916,1722279033220,-3834.18185265,0.00010992,2]
[333609917,1722279033236,-5674.0,0.00010992,2]
[333609918,1722279033247,-545.15058203,0.00010992,2]
[333609919,1722279033259,-1135.934798,0.00010992,2]
[333609920,1722279033273,-5922.19252957,0.00010992,2]
[333609921,1722279033284,-9879.9723561,0.00010992,2]
[333609922,1722279033293,-4482.35228991,0.00010992,2]
[333609934,1722279037896,-375.30476655,7.347e-05,2]
[333609935,1722279037905,-279.17376108,0.0001088,2]
[333609936,1722279038152,-90.25623892,0.0001088,2]
[333609937,1722279038162,-369.43,0.00010889,2]
[333609938,1722279038171,-23.97376108,0.00010889,2]
[333609939,1722279038191,-345.45623892,0.00010889,2]
[333609940,1722279038201,-235.31770133,0.00010982,2]
[333609941,1722279038212,-134.11229867,0.00010982,2]
[333609942,1722279038221,-369.43,0.00010982,2]
[333609943,1722279038231,-369.43,0.00010982,2]
[333609944,1722279038240,-369.43,0.00010982,2]
[333609945,1722279038249,-369.43,0.00010982,2]
[333609946,1722279038259,-369.43,0.00010988,2]
[333609947,1722279038270,-369.43,0.00010989,2]
[333609948,1722279038280,-20378.72691503,0.00010992,2]
[333609949,1722279038291,-2592.13152907,0.00010992,2]
[333609950,1722279038302,-17557.47668954,0.00010992,2]
[333609951,1722279038317,-310.24010705,0.00010992,2]
[333609952,1722279038336,-872.8850417,0.00010992,2]
[333609953,1722279038346,-903.2584701,0.00010996,2]
[333609954,1722279038355,-500.0,0.00010997,2]
[333609955,1722279038364,-500.0,0.00010998,2]
[333609956,1722279038374,-500.0,0.00010998,2]
[333609957,1722279038383,-500.0,0.00010998,2]
[333609958,1722279038392,-500.0,0.00010998,2]
[333609959,1722279038401,-500.0,0.00010998,2]
[333609960,1722279038411,-500.0,0.00010998,2]
[333609961,1722279038420,-500.0,0.00010998,2]
[333609962,1722279038430,-500.0,0.00010998,2]
[333609963,1722279038439,-500.0,0.00010998,2]
[333609964,1722279038449,-318.46,0.00010998,2]
[333609965,1722279038458,-500.0,0.00010998,2]
[333609966,1722279038467,-500.0,0.00010998,2]
[333609967,1722279038476,-500.0,0.00010998,2]
[333609968,1722279038485,-500.0,0.00010998,2]
[333609970,1722279038495,-500.0,0.00010998,2]
[333609971,1722279038503,-546.37,0.00010998,2]
[333609973,1722279038514,-260.81853208,0.00010998,2]
[333609975,1722279038525,-500.0,0.00010998,2]
[333609976,1722279038534,-500.0,0.00010998,2]
[333609978,1722279038545,-500.0,0.00010998,2]
[333609980,1722279038555,-500.0,0.00010998,2]
[333609982,1722279038564,-560.81,0.00010998,2]
[333609984,1722279038573,-500.0,0.00010998,2]
[333609986,1722279038583,-500.0,0.00010998,2]
[333609988,1722279038592,-281.09,0.00010998,2]
[333609990,1722279038603,-163.05,0.00010998,2]
[333609992,1722279038612,-445.0,0.00010999,2]
[333609994,1722279038621,-450.0,0.00010999,2]
[333609996,1722279038630,-234.362,0.00010999,2]
[333609998,1722279038639,-150.0,0.00010999,2]
[333610000,1722279038649,-531.0,0.00010999,2]
[333610002,1722279038658,-5124.0,0.00010999,2]
[333610004,1722279038667,-1202.0,0.00010999,2]
[333610006,1722279038676,-228.886,0.00010999,2]
[333610008,1722279038685,-580.0,0.00010999,2]
[333610010,1722279038695,-776532.20468498,0.00010999,2]
[333610012,1722279038706,-409639.21164988,0.00010999,2]
[333610014,1722279038717,-569.8699703,0.00010999,2]
[333610017,1722279038729,-598.24,0.00010999,2]
[333610019,1722279038740,-8014.99457,0.00010999,2]
[333610021,1722279038751,-428.61941707,0.00010999,2]
[333610023,1722279038764,-815.0,0.00010999,2]
[333610025,1722279038775,-2838.70219605,0.00010999,2]
[333610138,1722279040113,-627.83,0.00010999,2]
[333610140,1722279040126,-3415.16277144,0.00010999,2]
[333610141,1722279040137,-2430.58730663,0.00010999,2]
[333610143,1722279040149,-463.77737197,0.00010999,2]
[333610147,1722279040189,-415.87000001,0.00010999,2]
[333610149,1722279040200,-925.93555543,0.00010999,2]
[333610150,1722279040212,-4677.57779459,0.00010999,2]
[333610152,1722279040223,-431.87251609,0.00010999,2]
[333610154,1722279040234,-404.02422795,0.00010999,2]
[333610156,1722279040245,-355483.58413842,0.00010999,2]
[333610167,1722279040397,-1500.0,0.00010999,2]
[333610169,1722279040409,-961.27203814,0.00010999,2]
[333610172,1722279040486,-76075.35550569,0.00010999,2]
[333610424,1722279043024,-9451.7069897,0.00010999,2]
[333610426,1722279043036,-590.9,0.00010999,2]
[333610428,1722279043048,-5655.250559,0.00010999,2]